bitfinex-derivatives/quotes_BTCF0:USTF0_20251209
["timestamp","ask_amount","ask_price","bid_price","bid_amount"]
[1765296305937,0.13513399,93190.0,93179.0,0.00016097]
[1765296306341,0.00107308,93190.0,93187.0,0.003]
[1765296306544,0.00107308,93190.0,93187.0,0.008]
[1765296307047,0.00107308,93190.0,93179.0,0.00016097]
[1765296307048,0.00107308,93190.0,93179.0,0.00416097]
[1765296307248,0.16742095,93190.0,93179.0,0.00716097]
[1765296307748,0.3608,93186.0,93179.0,0.00316097]
[1765296307940,0.16742095,93190.0,93179.0,0.00316097]
[1765296308135,0.16742095,93190.0,93159.0,0.3608]
[1765296308136,0.3608,93186.0,93168.0,0.3608]
[1765296308341,0.3608,93175.0,93150.0,0.3608]
[1765296308536,0.16634787,93170.0,93150.0,0.3608]
[1765296308936,0.00107308,93190.0,93167.0,0.3608]
[1765296309141,0.3608,93187.0,93167.0,0.3608]
[1765296309453,0.3608,93187.0,93179.0,0.004]
[1765296309751,0.00016097,93188.0,93179.0,0.004]
[1765296309940,0.00016097,93188.0,93177.0,0.3608]
[1765296310140,0.00016097,93188.0,93185.0,0.3608]
[1765296310340,0.001,93187.0,93185.0,0.3608]
[1765296311342,0.001,93187.0,93185.0,0.3648]
[1765296311741,0.00016097,93188.0,93185.0,0.3648]
[1765296312744,0.00016097,93188.0,93185.0,0.007]
[1765296313154,0.00016097,93188.0,93186.0,0.3608]
[1765296313848,0.00107308,93190.0,93187.0,0.4107313]
[1765296314052,0.07678456,93220.0,93204.0,0.0107293]
[1765296314250,0.49818948,93239.0,93212.0,0.7216]
[1765296314251,0.07678456,93222.0,93212.0,0.7216]
[1765296314451,0.07678456,93226.0,93212.0,0.7216]
[1765296314748,0.07678456,93234.0,93212.0,0.7216]
[1765296314946,0.07678456,93234.0,93232.0,0.3608]
[1765296315148,0.00265758,93239.0,93224.0,0.3608]
[1765296315355,0.07667553,93236.0,93224.0,0.3608]
[1765296315543,0.00265758,93239.0,93224.0,0.3608]
[1765296315544,0.07667553,93237.0,93224.0,0.3608]
[1765296315950,0.07667553,93235.0,93224.0,0.3608]
[1765296316145,0.07667553,93237.0,93224.0,0.3608]
[1765296316340,0.07933311,93239.0,93224.0,0.3608]
[1765296316542,0.07933311,93239.0,93224.0,0.3618]
[1765296316746,0.00265758,93239.0,93236.0,0.3608]
[1765296318942,0.00265758,93239.0,93236.0,0.3725256]
[1765296319154,0.00265758,93239.0,93236.0,0.3618]
[1765296319650,0.00265758,93239.0,93238.0,0.3608]
[1765296320444,0.00265758,93239.0,93236.0,0.001]
[1765296321140,0.00265758,93239.0,93238.0,0.3608]
[1765296321861,0.00016097,93242.0,93238.0,0.35814207]
[1765296322152,0.00016097,93242.0,93238.0,0.35914207]
[1765296323049,0.00016097,93242.0,93238.0,0.35814207]
[1765296324561,0.00016097,93242.0,93239.0,0.0107253]
[1765296324757,0.3608,93270.0,93238.0,0.35814207]
[1765296325053,0.58346838,93270.0,93248.0,0.3608]
[1765296325240,0.3608,93270.0,93248.0,0.3608]
[1765296325643,0.00016088,93268.0,93256.0,0.3608]
[1765296326552,0.00016088,93268.0,93250.0,0.00016088]
[1765296326748,0.3608,93262.0,93250.0,0.00016088]
[1765296327654,0.3608,93251.0,93236.0,0.3608]
[1765296327951,0.3608,93243.0,93216.0,0.3608]
[1765296328146,0.3608,93232.0,93218.0,0.3608]
[1765296328551,0.3608,93234.0,93218.0,0.3608]
[1765296330750,0.3618,93234.0,93218.0,0.3608]
[1765296331358,0.3608,93234.0,93218.0,0.3608]
[1765296331547,0.3628,93234.0,93218.0,0.3608]
[1765296332151,0.3608,93234.0,93218.0,0.3608]
[1765296332346,0.001,93234.0,93218.0,0.3608]
[1765296332552,0.001,93234.0,93226.0,0.3608]
[1765296332953,0.3608,93232.0,93218.0,0.3608]
[1765296333642,0.001,93234.0,93228.0,0.3608]
[1765296333844,0.00016088,93235.0,93228.0,0.3608]
[1765296334448,0.00016088,93235.0,93226.0,0.002]
[1765296334648,0.001,93232.0,93226.0,0.005]
[1765296335154,0.001,93232.0,93218.0,0.3608]
[1765296335354,0.00016088,93235.0,93228.0,0.004]
[1765296335550,0.00016088,93235.0,93228.0,0.3658]
[1765296335950,0.00016088,93235.0,93228.0,0.3618]
[1765296336756,0.00016088,93235.0,93228.0,0.001]
[1765296336960,0.3608,93232.0,93226.0,0.005]
[1765296337164,0.3618,93232.0,93226.0,0.005]
[1765296337362,0.001,93232.0,93226.0,0.005]
[1765296337755,0.3608,93234.0,93228.0,0.005]
[1765296337961,0.3608,93234.0,93228.0,0.007]
[1765296338259,0.3608,93234.0,93228.0,0.002]
[1765296338459,0.3608,93234.0,93218.0,0.3608]
[1765296338656,0.22266838,93228.0,93217.0,0.00016088]
[1765296338853,0.3608,93223.0,93217.0,0.00016088]
[1765296339256,0.22266838,93228.0,93217.0,0.00016088]
[1765296339548,0.3608,93234.0,93217.0,0.00016088]
[1765296339549,0.3608,93226.0,93217.0,0.00016088]
[1765296339751,0.3608,93226.0,93218.0,0.002]
[1765296339953,0.3608,93223.0,93218.0,0.002]
[1765296341061,0.3608,93223.0,93218.0,0.004]
[1765296341259,0.3608,93223.0,93218.0,0.002]
[1765296341660,0.3608,93223.0,93192.0,0.3608]
[1765296341852,0.00016088,93235.0,93184.0,0.3608]
[1765296341853,0.3608,93199.0,93184.0,0.3608]
[1765296342052,0.3608,93209.0,93184.0,0.3608]
[1765296342660,0.00016088,93206.0,93187.0,0.00016088]
[1765296342856,0.00016088,93206.0,93195.0,0.3608]
[1765296343256,0.00016088,93206.0,93187.0,0.00016088]
[1765296343954,0.00316088,93206.0,93187.0,0.00016088]
[1765296344153,0.003,93199.0,93187.0,0.00016088]
[1765296344358,0.3608,93191.0,93187.0,0.00016088]
[1765296345562,0.3608,93191.0,93174.0,0.3608]
[1765296345760,0.004,93199.0,93185.0,0.3608]
[1765296346265,0.002,93191.0,93185.0,0.3608]
[1765296346461,0.002,93191.0,93174.0,0.3608]
[1765296346661,0.002,93191.0,93179.0,0.00016097]
[1765296347067,0.00016097,93197.0,93185.0,0.3608]
[1765296348064,0.001,93191.0,93185.0,0.3608]
[1765296349158,0.006,93191.0,93185.0,0.3608]
[1765296349360,0.005,93191.0,93185.0,0.3608]
[1765296350366,0.007,93191.0,93179.0,0.00016097]
[1765296351569,0.3608,93188.0,93179.0,0.00016097]
[1765296351958,0.007,93191.0,93180.0,0.3608]
[1765296352470,0.005,93191.0,93180.0,0.3608]
[1765296352864,0.001,93191.0,93180.0,0.3608]
[1765296353063,0.004,93188.0,93180.0,0.3608]
[1765296353460,0.001,93191.0,93180.0,0.3608]
[1765296353661,0.005,93191.0,93180.0,0.3608]
[1765296354168,0.001,93188.0,93180.0,0.3608]
[1765296354371,0.001,93188.0,93179.0,0.00016097]
[1765296355370,0.005,93188.0,93185.0,0.3608]
[1765296355869,0.004,93188.0,93185.0,0.3608]
[1765296356469,0.00016097,93197.0,93185.0,0.3608]
[1765296356668,0.007,93188.0,93185.0,0.3608]
[1765296358574,0.00516097,93197.0,93185.0,0.3608]
[1765296358771,0.00716097,93197.0,93193.0,0.3608]
[1765296359073,0.00216097,93197.0,93193.0,0.3608]
[1765296359464,0.00016097,93197.0,93193.0,0.3608]
[1765296359664,0.00016097,93197.0,93185.0,0.3608]
[1765296359967,0.00716097,93197.0,93185.0,0.3608]
[1765296360370,0.00716097,93197.0,93179.0,0.00016097]
[1765296360371,0.01016097,93197.0,93179.0,0.00016097]
[1765296360765,0.01016097,93197.0,93185.0,0.3608]
[1765296360766,0.22266838,93190.0,93185.0,0.3608]
[1765296360961,0.3608,93187.0,93179.0,0.00016097]
[1765296361571,0.3608,93182.0,93179.0,0.00016097]
[1765296362269,0.3608,93195.0,93179.0,0.00016097]
[1765296362474,0.004,93187.0,93179.0,0.01089317]
[1765296362775,0.004,93187.0,93186.0,0.3608]
[1765296362974,0.00216097,93197.0,93186.0,0.3608]
[1765296363368,0.00216097,93197.0,93195.0,0.3608]
[1765296363569,0.00016097,93197.0,93195.0,0.3715303]
[1765296363770,0.00016097,93197.0,93195.0,0.3608]
[1765296364568,0.00016097,93197.0,93179.0,0.00016097]
[1765296364770,0.004,93187.0,93179.0,0.00016097]
[1765296364971,0.004,93187.0,93186.0,0.3608]
[1765296365372,0.00916097,93197.0,93186.0,0.3608]
[1765296365965,0.00716097,93197.0,93196.0,0.3608]
[1765296366165,0.00016097,93197.0,93196.0,0.3608]
[1765296366878,0.00216097,93197.0,93195.0,0.3608]
[1765296367177,0.00216097,93197.0,93186.0,0.3608]
[1765296367581,0.3608,93191.0,93179.0,0.00016097]
[1765296367970,0.22266838,93190.0,93179.0,0.00016097]
[1765296368278,0.3608,93191.0,93179.0,0.00016097]
[1765296368466,0.22266838,93190.0,93179.0,0.00016097]
[1765296369169,0.001,93190.0,93179.0,0.00016097]
[1765296369485,0.3608,93180.0,93179.0,0.00016097]
[1765296369775,0.3608,93180.0,93165.0,0.36093262]
[1765296369980,0.22266838,93175.0,93165.0,0.36093262]
[1765296370676,0.22366838,93190.0,93165.0,0.36093262]
[1765296370880,0.3608,93183.0,93165.0,0.36093262]
[1765296371177,0.22266838,93180.0,93173.0,0.3608]
[1765296371477,0.3608,93174.0,93165.0,0.00013262]
[1765296371975,0.001,93175.0,93165.0,0.36093262]
[1765296372176,0.3618,93183.0,93165.0,0.36093262]
[1765296372381,0.22266838,93180.0,93177.0,0.3608]
[1765296372681,0.22266838,93180.0,93165.0,0.36093262]
[1765296373079,0.22266838,93180.0,93165.0,0.36193262]
[1765296373876,0.001,93174.0,93165.0,0.36193262]
[1765296374180,0.001,93174.0,93165.0,0.00113262]
[1765296374370,0.3608,93169.0,93165.0,0.00113262]
[1765296375380,0.3608,93169.0,93165.0,0.00013262]
[1765296375574,0.3608,93169.0,93144.0,0.3608]
[1765296375575,0.3608,93167.0,93144.0,0.3608]
[1765296375881,0.3608,93146.0,93140.0,0.00107366]
[1765296376084,0.00016097,93152.0,93140.0,0.33888288]
[1765296376282,0.00016097,93152.0,93140.0,0.25119572]
[1765296376585,0.3608,93151.0,93141.0,0.0107366]
[1765296376773,0.36089779,93151.0,93144.0,0.0107362]
[1765296376977,0.36089779,93151.0,93140.0,0.25210029]
[1765296377287,0.3608,93150.0,93140.0,0.00107366]
[1765296377585,9.779e-05,93151.0,93140.0,0.16742269]
[1765296377982,9.779e-05,93151.0,93144.0,0.001]
[1765296378176,0.3608,93148.0,93144.0,0.001]
[1765296378374,0.3608,93148.0,93140.0,0.00307366]
[1765296378687,0.3608,93148.0,93140.0,0.00507366]
[1765296378983,0.3608,93148.0,93144.0,0.002]
[1765296379773,9.779e-05,93151.0,93140.0,0.08907641]
[1765296379774,0.3608,93145.0,93140.0,0.08907641]
[1765296379975,0.3608,93145.0,93140.0,0.00507366]
[1765296380278,0.3608,93145.0,93144.0,0.001]
[1765296380681,0.3608,93145.0,93140.0,0.00307366]
[1765296380975,0.3608,93145.0,93144.0,0.001]
[1765296381284,0.3608,93145.0,93140.0,0.00107366]
[1765296381595,0.3608,93145.0,93144.0,0.003]
[1765296381884,0.3608,93145.0,93144.0,0.002]
[1765296382192,0.3678,93145.0,93144.0,0.001]
[1765296382682,0.3678896,93145.0,93121.0,0.02745368]
[1765296382884,0.3608,93122.0,93120.0,0.00021456]
[1765296383073,0.0001285,93121.0,93120.0,0.00021456]
[1765296384382,0.0081285,93121.0,93120.0,0.00021456]
[1765296385278,0.0081285,93121.0,93105.0,0.0366049]
[1765296385279,0.0121285,93121.0,93105.0,0.02745368]
[1765296385479,0.3608,93116.0,93105.0,0.02745368]
[1765296385679,0.3608,93116.0,93103.0,0.02745368]
[1765296386276,0.3608,93116.0,93100.0,0.02745368]
[1765296386481,0.3608,93101.0,93096.0,0.02745368]
[1765296386781,0.00013262,93100.0,93097.0,0.02745368]
[1765296386987,0.00013262,93100.0,93092.0,0.0366049]
[1765296386988,0.00013262,93100.0,93096.0,0.02745368]
[1765296387194,0.00013262,93100.0,93095.0,0.02753497]
[1765296387690,0.00013262,93100.0,93099.0,0.02745368]
[1765296387881,0.00013262,93100.0,93099.0,0.05603223]
[1765296388092,0.00013262,93100.0,93099.0,0.02857855]
[1765296388387,0.00313262,93100.0,93099.0,0.02857855]
[1765296388576,0.00413262,93100.0,93099.0,0.05607704]
[1765296388784,0.00413262,93100.0,93099.0,0.05607481]
[1765296388984,0.36493262,93100.0,93099.0,0.02857855]
[1765296389183,0.36393262,93100.0,93099.0,0.02857855]
[1765296389383,0.36393262,93100.0,93099.0,0.00738282]
[1765296389384,0.36493262,93100.0,93099.0,0.00738282]
[1765296389585,0.36493262,93100.0,93095.0,8.129e-05]
[1765296389780,0.36193262,93100.0,93095.0,8.129e-05]
[1765296389990,0.36593262,93100.0,93095.0,8.129e-05]
[1765296390977,0.36493262,93100.0,93095.0,0.02757755]
[1765296391183,0.36493262,93100.0,93095.0,8.129e-05]
[1765296392094,0.36493262,93100.0,93095.0,0.02757755]
[1765296392488,0.36493262,93100.0,93095.0,8.129e-05]
[1765296392885,0.00413262,93100.0,93097.0,0.0107416]
[1765296393287,0.00413262,93100.0,93097.0,0.0473465]
[1765296393484,0.00016108,93108.0,93107.0,0.0107405]
[1765296393688,0.3608,93117.0,93107.0,0.02744517]
[1765296393982,0.09615309,93191.0,93107.0,0.02744517]
[1765296393983,0.3608,93138.0,93124.0,0.0107385]
[1765296394186,0.3608,93138.0,93134.0,0.0107373]
[1765296394389,0.07692247,93193.0,93128.0,0.16634903]
[1765296394390,0.3608,93157.0,93136.0,0.3608]
[1765296394589,0.50996,93178.0,93140.0,0.16634903]
[1765296394788,0.00016108,93165.0,93150.0,0.16634903]
[1765296395380,0.00016108,93165.0,93146.0,0.00016108]
[1765296395580,0.93702703,93171.0,93146.0,0.00016108]
[1765296396181,0.16634903,93210.0,93169.0,0.0107333]
[1765296396387,0.16634903,93210.0,93170.0,0.16634903]
[1765296396587,0.00016099,93199.0,93181.0,0.00016099]
[1765296397189,0.3608,93182.0,93181.0,0.00016099]
[1765296398699,0.3628,93182.0,93181.0,0.00016099]
[1765296399283,0.3648,93182.0,93181.0,0.00016099]
[1765296400191,0.004,93182.0,93181.0,0.00016099]
[1765296400387,0.002,93182.0,93181.0,0.00016099]
[1765296400587,0.004,93182.0,93181.0,0.00016099]
[1765296400987,0.002,93182.0,93181.0,0.00016099]
[1765296401185,0.007,93182.0,93181.0,0.00016099]
[1765296402622,0.007,93182.0,93181.0,0.01089299]
[1765296402795,0.007,93182.0,93181.0,0.41089299]
[1765296402997,0.00016099,93199.0,93197.0,0.01073]
[1765296403188,0.00016099,93199.0,93198.0,0.3608]
[1765296403603,0.00021456,93213.0,93209.0,0.0107286]
[1765296403986,0.00021456,93213.0,93203.0,0.16634903]
[1765296404190,0.00021456,93213.0,93210.0,0.0107285]
[1765296404396,0.00021456,93213.0,93203.0,0.16634903]
[1765296404698,0.00021456,93213.0,93204.0,0.0107293]
[1765296404997,0.00021456,93213.0,93203.0,0.16634903]
[1765296405195,0.00021456,93213.0,93209.0,0.0107287]
[1765296405399,0.00021456,93213.0,93212.0,0.3608]
[1765296405986,0.002,93213.0,93212.0,0.7608]
[1765296406190,0.00016099,93217.0,93212.0,0.7608]
[1765296406191,0.00016099,93217.0,93213.0,0.0107283]
[1765296406586,0.3608,93236.0,93214.0,0.4]
[1765296406785,0.3608,93236.0,93207.0,0.0107289]
[1765296406786,0.00107251,93240.0,93233.0,0.3608]
[1765296407392,0.3608,93263.0,93233.0,0.38229178]
[1765296407593,0.3608,93254.0,93239.0,0.00016088]
[1765296407899,0.3608,93245.0,93239.0,0.00016088]
[1765296408098,0.00016088,93257.0,93239.0,0.00016088]
[1765296408397,0.3608,93240.0,93239.0,0.00016088]
[1765296410293,0.3608,93240.0,93239.0,0.00116088]
[1765296410902,0.3608,93240.0,93197.0,0.37153]
[1765296411198,0.3608,93222.0,93200.0,0.16634903]
[1765296411400,0.3608,93214.0,93200.0,0.16634903]
[1765296411898,0.3608,93214.0,93162.0,0.43028]
[1765296411899,0.00016088,93216.0,93208.0,0.3608]
[1765296412105,0.00016088,93221.0,93208.0,0.3608]
[1765296412604,0.00016088,93221.0,93210.0,0.16634903]
[1765296413000,0.00016088,93221.0,93218.0,0.0107276]
[1765296413201,0.00016088,93221.0,93214.0,0.0107281]
[1765296413403,0.00216088,93221.0,93208.0,0.3608]
[1765296413599,0.00216088,93221.0,93203.0,0.00016088]
[1765296413600,0.3608,93214.0,93203.0,0.00016088]
[1765296413799,0.3608,93204.0,93203.0,0.00016088]
[1765296414504,0.3608,93214.0,93203.0,0.00016088]
[1765296414697,0.3608,93212.0,93203.0,0.00016088]
[1765296415098,0.3608,93204.0,93203.0,0.00016088]
[1765296415598,0.36096088,93221.0,93203.0,0.00016088]
[1765296415799,0.36096088,93221.0,93210.0,0.16634903]
[1765296415800,0.3608,93220.0,93210.0,0.16634903]
[1765296416408,0.3608,93220.0,93206.0,0.010729]
[1765296416604,0.3608,93220.0,93204.0,0.3608]
[1765296416908,0.3608,93206.0,93203.0,0.00016088]
[1765296418105,0.3608,93212.0,93203.0,0.00016088]
[1765296419002,0.001,93206.0,93203.0,0.00016088]
[1765296419199,0.3608,93204.0,93203.0,0.00016088]
[1765296420407,0.3608,93212.0,93203.0,0.00016088]
[1765296420609,0.3608,93220.0,93203.0,0.00016088]
[1765296420799,0.3608,93220.0,93210.0,0.16634903]
[1765296421005,0.00016088,93221.0,93218.0,0.0107277]
[1765296421200,0.00016088,93221.0,93210.0,0.16634903]
[1765296421201,0.07692247,93266.0,93239.0,0.0107253]
[1765296421404,0.07692247,93266.0,93164.0,0.1611696]
[1765296421405,0.07692247,93266.0,93238.0,0.0107253]
[1765296421605,0.07692247,93267.0,93235.0,0.0107257]
[1765296421804,0.16634903,93260.0,93222.0,0.0107271]
[1765296422005,0.16634903,93260.0,93167.0,0.02728092]
[1765296422006,0.16634903,93250.0,93210.0,0.16634903]
[1765296422302,0.00016088,93239.0,93221.0,0.00016088]
[1765296422915,0.00016088,93239.0,93222.0,0.003]
[1765296422916,0.3608,93237.0,93222.0,0.003]
[1765296423107,0.3608,93228.0,93222.0,0.003]
[1765296423309,0.16634903,93232.0,93190.0,0.16634903]
[1765296423510,0.16634903,93220.0,93190.0,0.0107309]
[1765296423706,0.07692247,93238.0,93190.0,0.16634903]
[1765296423913,0.08565515,93239.0,93221.0,0.003]
[1765296424211,0.16634903,93231.0,93191.0,0.0107308]
[1765296424413,0.16634903,93220.0,93214.0,0.00016088]
[1765296424807,0.00016088,93232.0,93190.0,0.00107308]
[1765296425005,0.00016088,93232.0,93200.0,0.16634903]
[1765296425409,0.00016088,93232.0,93206.0,0.010729]
[1765296425611,0.3608,93216.0,93206.0,0.010729]
[1765296425818,0.3608,93220.0,93204.0,0.3608]
[1765296426006,0.3608,93220.0,93202.0,0.00016088]
[1765296426007,0.3608,93205.0,93202.0,0.00016088]
[1765296427616,0.7216,93205.0,93202.0,0.00016088]
[1765296428513,0.7236,93205.0,93202.0,0.00016088]
[1765296428714,0.3628,93205.0,93202.0,0.00016088]
[1765296429304,0.3608,93203.0,93202.0,0.00016088]
[1765296429815,0.7608,93203.0,93190.0,0.00107308]
[1765296430021,0.3638,93205.0,93161.0,0.02172475]
[1765296430022,0.7216,93191.0,93161.0,0.02172475]
[1765296430206,0.3608,93181.0,93171.0,0.010733]
[1765296430412,0.3608,93186.0,93171.0,0.010733]
[1765296430608,0.00016097,93188.0,93171.0,0.010733]
[1765296430923,0.3608,93186.0,93170.0,0.17708223]
[1765296431110,0.3608,93186.0,93173.0,0.0107328]
[1765296431513,0.3608,93186.0,93169.0,0.01089427]
[1765296431821,0.3608,93186.0,93169.0,0.00016097]
[1765296432027,0.00016097,93188.0,93186.0,0.0107313]
[1765296433325,0.00016097,93188.0,93173.0,0.001]
[1765296433517,0.3608,93187.0,93176.0,0.3608]
[1765296433924,0.3608,93187.0,93177.0,0.0107324]
[1765296434117,0.3608,93187.0,93173.0,0.001]
[1765296434322,0.3608,93179.0,93173.0,0.001]
[1765296434518,0.3608,93179.0,93169.0,0.00016097]
[1765296435423,0.3608,93171.0,93169.0,0.00016097]
[1765296436329,0.3608,93171.0,93161.0,0.00011657]
[1765296436514,0.3608,93162.0,93161.0,0.00011657]
[1765296436716,0.3608,93162.0,93131.0,0.0107377]
[1765296436911,0.3608,93142.0,93130.0,0.3608]
[1765296437121,0.3608,93142.0,93126.0,0.01092252]
[1765296437425,0.3608,93131.0,93126.0,0.01092252]
[1765296437626,0.00011263,93130.0,93126.0,0.01092252]
[1765296437825,0.3608,93128.0,93120.0,0.00021456]
[1765296439319,0.3608,93125.0,93120.0,0.00021456]
[1765296440319,0.3608,93125.0,93090.0,0.01181654]
[1765296440516,0.3628,93128.0,93090.0,0.01181654]
[1765296440517,0.3608,93103.0,93090.0,0.00107424]
[1765296440821,0.3608,93093.0,93090.0,0.00107424]
[1765296441418,0.3608,93093.0,93090.0,0.01181664]
[1765296441725,9.474e-05,93102.0,93093.0,0.0107421]
[1765296441921,9.474e-05,93102.0,93098.0,0.0107415]
[1765296442314,9.474e-05,93102.0,93098.0,0.3715415]
[1765296442717,0.00016107,93118.0,93116.0,0.0107394]
[1765296442920,0.00016107,93118.0,93112.0,0.0107399]
[1765296443117,0.00016107,93118.0,93108.0,0.3608]
[1765296443318,0.00016107,93118.0,93098.0,0.002]
[1765296443625,0.00016107,93118.0,93099.0,0.0107414]
[1765296443823,0.00016107,93118.0,93090.0,0.22620088]
[1765296444025,0.00216107,93118.0,93090.0,0.00307424]
[1765296444228,0.00216107,93118.0,93098.0,0.001]
[1765296445118,0.00216107,93118.0,93090.0,0.00307424]
[1765296445322,0.00016107,93118.0,93090.0,0.00307424]
[1765296445627,0.3608,93106.0,93098.0,0.002]
[1765296445926,0.3608,93117.0,93098.0,0.002]
[1765296446128,0.3608,93117.0,93106.0,0.0107405]
[1765296446338,0.3608,93117.0,93102.0,0.371541]
[1765296446634,0.3608,93117.0,93102.0,0.3608]
[1765296447136,0.3608,93117.0,93110.0,0.0107401]
[1765296447324,0.3608,93117.0,93102.0,0.3608]
[1765296447529,0.3608,93104.0,93098.0,0.003]
[1765296448422,0.3608,93104.0,93098.0,0.002]
[1765296449221,0.3608,93104.0,93102.0,0.001]
[1765296449622,0.3608,93104.0,93090.0,0.00107424]
[1765296449822,0.3608,93091.0,93090.0,0.00107424]
[1765296451222,0.3608,93091.0,93090.0,0.00307424]
[1765296452120,0.3608,93091.0,93090.0,0.00707424]
[1765296452523,0.3608,93104.0,93090.0,0.00707424]
[1765296452733,0.3608,93104.0,93093.0,0.010742]
[1765296453032,0.3608,93104.0,93094.0,0.0107419]
[1765296453233,0.3608,93104.0,93096.0,0.0107417]
[1765296453439,0.3608,93104.0,93090.0,0.00707424]
[1765296453627,0.01085804,93126.0,93094.0,0.3608]
[1765296453628,0.3608,93114.0,93094.0,0.3608]
[1765296454028,0.3608,93114.0,93096.0,0.0107417]
[1765296454336,0.3608,93105.0,93094.0,0.3608]
[1765296454522,0.3608,93105.0,93090.0,0.00607424]
[1765296454723,0.3608,93105.0,93094.0,0.3608]
[1765296455032,0.3608,93095.0,93094.0,0.002]
[1765296456037,0.3608,93095.0,93094.0,0.004]
[1765296456638,0.3608,93105.0,93094.0,0.002]
[1765296457134,0.3608,93096.0,93094.0,0.002]
[1765296457334,0.3608,93105.0,93094.0,0.002]
[1765296457531,0.3608,93105.0,93094.0,0.004]
[1765296457933,0.3608,93095.0,93094.0,0.004]
[1765296458133,0.3608,93095.0,93094.0,0.002]
[1765296458324,0.3608,93095.0,93094.0,0.004]
[1765296459436,0.3608,93097.0,93094.0,0.004]
[1765296460629,0.3608,93097.0,93094.0,0.002]
[1765296460824,0.3608,93097.0,93094.0,0.004]
[1765296461641,0.2,93095.0,93094.0,0.004]
[1765296462731,0.17287318,93095.0,93094.0,0.002]
[1765296462932,0.17287318,93095.0,93094.0,0.004]
[1765296463843,0.17287318,93095.0,93094.0,0.002]
[1765296464040,0.17287318,93095.0,93094.0,0.004]
[1765296464836,0.17287318,93095.0,93094.0,0.005]
[1765296465342,0.17287318,93095.0,93094.0,0.004]
[1765296466938,0.17287318,93095.0,93094.0,0.3648]
[1765296469146,0.17287318,93095.0,93094.0,0.004]
[1765296471036,0.17287318,93095.0,93094.0,0.014742]
[1765296471334,0.17287318,93095.0,93094.0,0.004]
[1765296473543,0.1685632,93095.0,93094.0,0.404]
[1765296473742,0.3608,93124.0,93117.0,0.0107393]
[1765296473944,0.3608,93135.0,93117.0,0.3715393]
[1765296474246,0.3608,93148.0,93117.0,0.77124525]
[1765296474444,0.07692247,93153.0,93134.0,0.3608]
[1765296474635,0.3608,93154.0,93143.0,0.0107363]
[1765296474835,0.49792,93172.0,93143.0,0.0107363]
[1765296474836,0.3608,93156.0,93143.0,0.0107363]
[1765296475238,0.3608,93156.0,93140.0,0.00016107]
[1765296475442,0.3608,93148.0,93140.0,0.00016107]
[1765296475646,0.3608,93145.0,93140.0,0.00016107]
[1765296475952,0.3608,93145.0,93143.0,0.002]
[1765296476546,0.3608,93145.0,93140.0,0.00016107]
[1765296476744,0.3628,93145.0,93140.0,0.00016107]
[1765296476938,0.36122758,93145.0,93140.0,0.00016107]
[1765296477445,0.002,93145.0,93140.0,0.00016107]
[1765296477844,0.005,93145.0,93140.0,0.00016107]
[1765296478042,0.003,93145.0,93140.0,0.00016107]
[1765296478238,0.006,93145.0,93140.0,0.00016107]
[1765296478443,0.3608,93144.0,93140.0,0.00016107]
[1765296479250,0.005,93145.0,93140.0,0.00016107]
[1765296479450,0.3608,93142.0,93140.0,0.00016107]
[1765296479948,0.002,93144.0,93140.0,0.00016107]
[1765296480244,0.3628,93144.0,93140.0,0.00016107]
[1765296481042,0.3668,93144.0,93140.0,0.00016107]
[1765296481239,0.001,93142.0,93140.0,0.00016107]
[1765296481436,0.001,93142.0,93141.0,0.0107366]
[1765296481641,0.003,93144.0,93141.0,0.7715365]
[1765296481942,0.07692247,93172.0,93166.0,0.0107336]
[1765296482143,0.07692247,93175.0,93162.0,0.3608]
[1765296482343,0.07692247,93176.0,93175.0,0.0107327]
[1765296482538,0.07692247,93177.0,93174.0,0.0107327]
[1765296482745,0.07692247,93178.0,93174.0,0.0107327]
[1765296483046,0.07692247,93177.0,93170.0,0.3715332]
[1765296483248,0.07692247,93178.0,93170.0,0.3608]
[1765296483439,0.07692247,93179.0,93170.0,0.3608]
[1765296483643,0.07692247,93178.0,93166.0,0.00016097]
[1765296484053,0.07692247,93178.0,93173.0,0.3608]
[1765296484244,0.07692247,93178.0,93166.0,0.00016097]
[1765296484245,0.07692247,93180.0,93166.0,0.00016097]
[1765296484557,0.004,93176.0,93166.0,0.00016097]
[1765296484848,0.3608,93170.0,93166.0,0.00016097]
[1765296485351,0.43772247,93169.0,93166.0,0.00016097]
[1765296485538,0.07692247,93168.0,93131.0,0.3608]
[1765296485745,0.3608,93148.0,93135.0,0.0107372]
[1765296486041,0.3608,93148.0,93131.0,0.3608]
[1765296486042,0.3608,93148.0,93131.0,0.37159651]
[1765296486243,0.3608,93148.0,93139.0,0.0107367]
[1765296486554,0.3608,93165.0,93131.0,0.37159651]
[1765296486555,0.00016097,93153.0,93147.0,0.0107358]
[1765296487050,0.00016097,93153.0,93134.0,0.00016097]
[1765296487051,0.00016097,93153.0,93143.0,0.0107363]
[1765296487253,0.00016097,93153.0,93134.0,0.00016097]
[1765296487457,0.00016097,93153.0,93150.0,0.0107355]
[1765296487844,0.3608,93174.0,93167.0,0.0107336]
[1765296488155,0.3608,93174.0,93151.0,0.3608]
[1765296488156,0.001,93170.0,93165.0,0.0107338]
[1765296488543,0.3608,93183.0,93165.0,0.0107338]
[1765296488746,0.3608,93173.0,93165.0,0.0107338]
[1765296488941,0.002,93174.0,93171.0,0.0107331]
[1765296489145,0.002,93174.0,93163.0,0.010734]
[1765296489340,0.001,93170.0,93163.0,0.010734]
[1765296489547,0.001,93170.0,93166.0,0.0107337]
[1765296489749,0.002,93173.0,93169.0,0.0107333]
[1765296489945,0.003,93173.0,93172.0,0.010733]
[1765296490150,0.003,93173.0,93168.0,0.0107334]
[1765296490551,0.003,93173.0,93162.0,0.3608]
[1765296491142,0.001,93173.0,93172.0,0.010733]
[1765296491348,0.00016097,93178.0,93177.0,0.0107324]
[1765296491854,0.3608,93197.0,93195.0,0.0107302]
[1765296492054,0.3608,93206.0,93195.0,0.0107302]
[1765296492256,0.3608,93206.0,93187.0,0.58392664]
[1765296492443,0.3608,93206.0,93198.0,0.3608]
[1765296492940,0.3608,93206.0,93199.0,0.0107299]